Cogmind - Beta 14 @@@ ROGUE MODE // 2025.01.04 @ 17:24:03 Player: Derk Result: Destroyed by as-32756 with Assembled Blade Performance ------------- Evolutions (0) 0 Regions Visited (2) 400 Robots Destroyed (21) 105 Value Destroyed (314) 314 Prototype IDs (0) 0 Alien Tech Used (0) 0 Bonus (0) 0 TOTAL SCORE: 819 Bonus ------- None Cogmind --------- Core Integrity 0/250 Matter 292/300 Energy 150/150 System Corruption 2% Temperature Cool (0) Movement Treading (480) Ox4 Location -10/Mines Parts ------- > --- POWER (1) -------- Light Angular Momentum Engine > --- PROPULSION (2) --- Light Treads > --- UTILITY (2) ------ Huge Storage Unit Targeting Computer > --- WEAPON (2) ------- Light Assault Rifle Hammer > --- INVENTORY (25) --- Light Ion Engine Light Treads Aluminum Leg Aluminum Leg Wheel Large Matter Pod (95) High-capacity Matter Pod (29) Improved Terrain Scanner Targeting Computer Targeting Computer Improved Trap Extractor (0/6) Beamcaster Improved Datajack Heavy Mace Explosive Trap Explosive Trap Peak State ------------ > --- POWER ------------ Light Angular Momentum Engine > --- PROPULSION ------- Light Treads Wheel > --- UTILITY ---------- Huge Storage Unit Targeting Computer > --- WEAPON ----------- Light Assault Rifle Light Assault Rifle > --- INVENTORY -------- Light Ion Engine Light Treads Light Treads Aluminum Leg Aluminum Leg Wheel Wheel Large Matter Pod High-capacity Matter Pod Improved Terrain Scanner Targeting Computer Targeting Computer Improved Trap Extractor Beamcaster Light Assault Rifle Improved Datajack Hammer Hammer Explosive Trap Explosive Trap [Rating: 14] Favorites ----------- Power Ion Engine Engine Ion Engine Propulsion Wheel Treads Light Treads Wheel Wheel Utility Huge Storage Unit Device Improved Terrain Scanner Storage Huge Storage Unit Processor Targeting Computer Weapon Light Assault Rifle Energy Gun EM Pulse Gun Ballistic Gun Light Assault Rifle Impact Weapon Hammer Build | -11 -10 -10 ------- Run | Yrd Mat Min Slots Evolved . | . . . Power . | . . . Propulsion . | . . . Utility . | . . . Weapon . | . . . Parts Attached 36 | 8 15 13 Power 3 | 1 1 1 Engine 3 | 1 1 1 Core . | . . . Reactor . | . . . Propulsion 17 | 2 8 7 Treads 8 | 2 2 4 Leg . | . . . Wheel 9 | . 6 3 Hover . | . . . Flight . | . . . Utility 5 | 2 2 1 Device 2 | 1 1 . Storage 2 | 1 1 . Processor 1 | . . 1 Hackware . | . . . Protection . | . . . Artifact . | . . . Weapon 11 | 3 4 4 Energy Gun 4 | 3 1 . Energy Cannon . | . . . Ballistic Gun 5 | . 2 3 Ballistic Cannon . | . . . Launcher . | . . . Special Weapon . | . . . Impact Weapon 2 | . 1 1 Slashing Weapon . | . . . Piercing Weapon . | . . . Special Melee Weapon . | . . . Unidentified Prototypes . | . . . Parts Lost 11 | . 4 7 Power 2 | . 1 1 Propulsion 4 | . . 4 Utility 1 | . 1 . Weapon 4 | . 2 2 Highest Loss Streak 3 | . 1 3 To Critical Strikes . | . . . Average Slot Usage (%) 98 | . 99 98 Engine 13 | . 13 12 Treads 4 | . . 9 Wheel 23 | . 27 17 Device 9 | . 14 3 Storage 14 | . 14 14 Processor 4 | . . 10 Energy Gun 5 | . 8 . Ballistic Gun 17 | . 15 20 Impact Weapon 5 | . 3 7 Peak Build Rating 14 | 8 10 14 Average Rating 10 | 5 9 12 On Entrance 6 | . 8 10 Naked Turns . | . . . Heaviest Build 92 | 14 89 92 Greatest Support 40 | 40 40 20 Greatest Overweight (x) 9 | . 8 9 Average Overweight (x) 4 | . 3 6 Largest Inventory Capacity 25 | 8 25 25 Average Capacity 23 | 6 24 25 Most Carried 21 | 8 17 21 Average Carried 12 | 4 11 17 Final Capacity 25 | 8 25 25 Final Carried 17 | 8 17 16 Class Distribution -------------------- 95% | Mutant 4% | Scavenger-Mutant Dominant Class ---------------- Mutant | -10/Materials Mutant | -10/Mines Resources | -11 -10 -10 ----------- Run | Yrd Mat Min Matter Collected 756 | 280 281 195 Remotely . | . . . Salvage Created 678 | 116 471 91 Parts 30 | 8 22 . Haulers Intercepted 1 | . 1 . Recyclers Shooed . | . . . Parts Field Recycled . | . . . Retrieved Matter . | . . . Parts Self-Destructed . | . . . Prevented . | . . . Kills | -11 -10 -10 ------- Run | Yrd Mat Min Combat Hostiles Destroyed 20 | . 14 6 Melee 1 | . . 1 Guns 19 | . 14 5 Classes Destroyed 9 | 2 6 1 Worker 1 | . 1 . Builder 1 | . 1 . Tunneler 2 | 2 . . Hauler 1 | . 1 . Recycler 1 | 1 . . Mechanic 1 | . 1 . Swarmer 9 | . 9 . Grunt 5 | . 5 . Assembled 6 | . . 6 Best Kill Streak 4 | 3 4 2 Combat Bots Only 4 | . 4 2 Max Kills in Single Turn 1 | 1 1 1 Gunslinging . | . . . Exploded . | . . . Melee 1 | . . 1 Uniques/NPCs Destroyed . | . . . Combat | -11 -10 -10 -------- Run | Yrd Mat Min Hostile Shots Fired 109 | . 65 44 Missed 12 | . 10 2 Damage Taken 1428 | . 506 922 Core 258 | . 91 167 Absorbed by Shields . | . . . Core Remaining (%) 100 | 100 . . Volleys Fired 99 | 13 52 34 Largest 2 | 2 2 2 Hottest 80 | 80 80 40 Shots Fired 168 | 16 96 56 Gun 168 | 16 96 56 Cannon . | . . . Launcher . | . . . Special . | . . . Kinetic 115 | . 59 56 Thermal 20 | 10 10 . Explosive . | . . . Electromagnetic 33 | 6 27 . Robot Hit Streak 12 | 8 10 12 Robot Miss Streak 8 | 4 8 3 Penetration Max . | . . . Secondary Targets 1 | . . 1 Max Gunslinging Chain 1 | . . 1 Shots Hit Robots 109 | 10 60 39 Core Hits 47 | 4 24 19 Critical Kills . | . . . Critical Parts Destroyed 3 | . 3 . Critical Strikes 4 | . 4 . Destroy 1 | . 1 . Corrupt 1 | . 1 . Smash 2 | . 2 . Melee Attacks 11 | . 9 2 Impact 11 | . 9 2 Slashing . | . . . Piercing . | . . . Sneak Attacks 4 | . 4 . Combat Hostiles . | . . . Follow-up Attacks . | . . . Damage Inflicted 1227 | 104 806 317 Guns 929 | 104 531 294 Cannons . | . . . Explosions 49 | . 49 . Melee 249 | . 226 23 Ramming . | . . . Kinetic 649 | . 355 294 Thermal 147 | 76 71 . Explosive . | . . . Electromagnetic 182 | 28 154 . Impact 249 | . 226 23 Slashing . | . . . Piercing . | . . . Highest Corruption 2 | . . 2 Average Corruption 2 | . . 2 Corruption Purged . | . . . Corruption Blocked . | . . . Effects 5 | . . 5 Message Errors 2 | . . 2 Matter Fused 2 | . . 2 Data Loss (minor) 1 | . . 1 Overload Shots . | . . . Overflow Damage 174 | . 174 . Projectiles . | . . . Explosions . | . . . Melee 174 | . 174 . Knockbacks 3 | . 3 . Impact 2 | . 2 . Kinetic . | . . . Secondary 1 | . 1 . Self-Inflicted Damage . | . . . Shots . | . . . Rammed . | . . . Targets Rammed . | . . . Kicked . | . . . Crushed . | . . . Highest Temperature 144 | 54 144 40 Average Temperature 27 | 29 36 12 Received Heat Transfer 408 | . 108 300 Siege Activations . | . . . Robots Corrupted 3 | . 3 . Combat Hostiles . | . . . Parts Fried 5 | . 5 . Impact Corruptions 8 | . 8 . Robots Melted . | . . . Combat Hostiles . | . . . Parts Melted . | . . . Heat Transferred 325 | 175 150 . Parts Sabotaged . | . . . Parts Stolen . | . . . Parts Stripped . | . . . Power Chain Reactions 1 | . 1 . Alert | -11 -10 -10 ------- Run | Yrd Mat Min Peak Influence 217 | 15 217 60 Initial 45 | . 9 45 Average 44 | 4 67 19 Maximum Alert Level 1 | . 1 . Low Security (%) 94 | 100 89 100 Level 1 5 | . 10 . Level 2 . | . . . Level 3 . | . . . Level 4 . | . . . Level 5 . | . . . High Security . | . . . Max Security . | . . . Squads Dispatched 2 | . 2 . Investigation 1 | . 1 . Extermination . | . . . Reinforcement 1 | . 1 . Assault . | . . . Garrison . | . . . Intercept . | . . . Searches Triggered . | . . . Construction Impeded . | . . . Haulers Reinforced . | . . . Active Scanning Responses . | . . . Cargo Convoy Interrupts . | . . . Stealth | -11 -10 -10 --------- Run | Yrd Mat Min Distress Signals 3 | . 3 . Communications Jammed . | . . . Distress Signals . | . . . Times Spotted 33 | . 25 8 Peak Tracking Total 5 | . 5 2 Tactical Retreats 3 | . 2 1 Traps | -11 -10 -10 ------- Run | Yrd Mat Min Traps Triggered 1 | . 1 . Indirectly . | . . . Trap Hack Attempts . | . . . Triggered . | . . . Disarmed . | . . . Reprogrammed . | . . . Reused 2 | . . 2 Traps Extracted . | . . . Installed 2 | . . 2 Triggered . | . . . Most Traps Carried 3 | . . 3 Machines | -11 -10 -10 ---------- Run | Yrd Mat Min Machines Disabled . | . . . Max in Single Turn . | . . . Machines Repaired . | . . . Machines Dismantled . | . . . Machines Sabotaged . | . . . Overloaded Fab Kills . | . . . Hacking | -11 -10 -10 --------- Run | Yrd Mat Min Machines Accessed 8 | . 7 1 Terminals 7 | . 7 . Fabricators . | . . . Repair Stations . | . . . Recycling Units . | . . . Scanalyzers . | . . . Garrison Access . | . . . Total Hacks 25 | . 24 1 Successful 17 | . 16 1 Failed 8 | . 8 . Catastrophic . | . . . Database Lockouts . | . . . Manual 12 | . 12 . Terminals 24 | . 24 . Fabricators . | . . . Repair Stations . | . . . Recycling Units . | . . . Scanalyzers . | . . . Garrison Access . | . . . Terminal Hacks 13 | . 12 1 Robot Analysis 1 | . 1 . Open Door 1 | . . 1 Branch Access Points 1 | . 1 . Terminal Index 1 | . 1 . Unreport Threat 2 | . 2 . Locate Traps 3 | . 3 . Recall Investigation 1 | . 1 . Hauler Manifests 1 | . 1 . Zone Layout 2 | . 2 . Fabricator Hacks . | . . . Repair Station Hacks . | . . . Recycling Unit Hacks . | . . . Scanalyzer . | . . . Garrison Access Hacks . | . . . Unauthorized Hacks 4 | . 4 . Terminals 4 | . 4 . Track 1 | . 1 . Botnet 2 | . 2 . Disrupt 1 | . 1 . Fabricators . | . . . Repair Stations . | . . . Recycling Units . | . . . Scanalyzers . | . . . Garrison Access . | . . . Data Cores Recovered . | . . . Used . | . . . Hacking Detections 7 | . 7 . Full Trace Events . | . . . Feedback Events . | . . . Feedback Blocked . | . . . Robot Schematics Acquired . | . . . Robots Built . | . . . Authchips . | . . . Time . | . . . Total Robot Build Rating . | . . . Part Schematics Acquired . | . . . Parts Built . | . . . Authchips . | . . . Time . | . . . Total Part Build Rating . | . . . Parts Repaired . | . . . Time . | . . . Parts Recycled . | . . . Recycled Matter . | . . . Retrieved Matter . | . . . Retrieved Components . | . . . Parts Scanalyzed . | . . . Part Schematics Acquired . | . . . Parts Damaged . | . . . Bothacking | -11 -10 -10 ------------ Run | Yrd Mat Min Used RIF Installer . | . . . Robots Hacked . | . . . Non-combat . | . . . Combat . | . . . Robot Hacks Applied . | . . . Relay Couplers Released . | . . . Fabnet Peak Effective % . | . . . Robots Rewired . | . . . Allies Hacked . | . . . Hacks Repelled . | . . . Allies | -11 -10 -10 -------- Run | Yrd Mat Min Total Allies . | . . . Largest Group . | . . . Highest-Rated Group . | . . . Highest-Rated Ally . | . . . Total Orders . | . . . Ally Attacks . | . . . Total Damage . | . . . Kills . | . . . Allies Corrupted . | . . . Allies Melted . | . . . Intel | -11 -10 -10 ------- Run | Yrd Mat Min Robot Analysis Total 1 | . 1 . Derelict Logs Recovered . | . . . Drone Launches . | . . . Drone Recoveries . | . . . Exploration | -11 -10 -10 ------------- Run | Yrd Mat Min Turns Passed 1397 | 126 752 519 Spaces Moved 673 | 51 398 224 Core 3 | 3 . . Treads 50 | 48 2 . Legs . | . . . Wheels 620 | . 396 224 Hover . | . . . Flight . | . . . Fastest Speed 50 | 50 90 140 Average Speed 153 | 153 137 180 Slowest Speed 215 | 160 200 215 Overloaded Moves . | . . . Propulsion Burnouts . | . . . Robots Hopped . | . . . Cave-ins Triggered . | . . . Exploration Rate (%) 46 | 5 87 48 Regions Visited 2 Branch Regions 1 Pre-discovered Areas . | . . . Known Exits Taken 1 | . 1 . Unknown Exits Taken 1 | 1 . . Scrap Searched . | . . . Spaces Dug 1 | . 1 . Terrain Destroyed 3 | . 3 . Melee 1 | . 1 . Projectile . | . . . AOE 2 | . 2 . Terrain Rammed . | . . . Walls Destroyed . | . . . Machines Disabled . | . . . Actions | -11 -10 -10 --------- Run | Yrd Mat Min Total 863 | 79 497 287 Wait 11 | . 10 1 Move 671 | 50 397 224 Hop . | . . . Pick Up 26 | 7 11 8 Fast Attach 11 | 8 2 1 Attach 9 | . 3 6 Detach 1 | 1 . . Swap 16 | . 10 6 Drop 6 | . 3 3 Fire 99 | 13 52 34 Melee 11 | . 9 2 Ram . | . . . Kick . | . . . Crush . | . . . Escape Stasis . | . . . Rewire . | . . . Trap 2 | . . 2 Miscellaneous . | . . . Route ------- -11/Scrapyard -10/Materials (discovered 3 exits: [*Mat] / *Min x2) -10/Mines History --------- Turn | Location | Event 4 | -11/Scrapyard | Discovered new exit (range 15) 127 | -11/Scrapyard | Entered Materials 155 | -10/Materials | Discovered new exit (range 12) 175 | -10/Materials | Identified exit to Mines 301 | -10/Materials | Build established: Mutant 614 | -10/Materials | Discovered new exit (range 19) 879 | -10/Materials | Entered Mines 880 | -10/Mines | Assembled infested the area 907 | -10/Mines | Found a hidden stash of uninstalled traps 977 | -10/Mines | Core integrity fell below 50% 1020 | -10/Mines | Met a Derelict who couldn't figure out how to use a Trap Extractor 1022 | -10/Mines | Lost 3 parts (1p1n1w) 1175 | -10/Mines | Core integrity fell below 20% 1398 | -10/Mines | Destroyed by as-32756 with Assembled Blade Last Messages --------------- 01113_ Acquired 16 matter. 01119_ Acquired 10 matter. 01142_ Acquired 18 matter. 01149_ Acquired 13 matter. 01178_ as-20805 destroyed. 01187_ Acquired 18 matter. 01205_ Lgt. Assault Rifle destroyed. 01205_ System corrupted by crushing effect (+2). 01212_ as-00364 destroyed. 01215_ System corrupted: Matter fused (-8). 01215_ Acquired 16 matter. 01254_ Acquired 6 matter. 01258_ ,RSA:N %T&RORA|E> XO0, %0LWZMX&TE4KAVAL 01277_ Acquired 8 matter. 01282_ T1N ABPH4OZTNUQMTQ19QE1RZZIO&Y#PI 01297_ Acquired 20 matter. 01324_ System corrupted: Matter fused (-5). 01342_ System corrupted: Component data lost. 01387_ as-11571 destroyed. 01393_ Wheel destroyed. Map ----- +----------------------------------------------------+ | ???????### #???????????????????????? | | ??????## ########???????????????????????? | | ??????# ##?????????????????????????????? | | ??????# ######????????????????????????? | | ??????## =* =#????????????????????????? | | ???????## *### #????????????"""!????????? | | ????????## #?# #???????? |%???????? | | ?????????# ##?# ##### =???????? | | ?????????# #??# ???????? | | ?????????# #??# #???????? | | ?????????# #??##### #????????? | | ?????????# #???????# ##????????? | | ?????????# ###??????# #?????????? | | ?????????# #???????# #?????????? | | ?????????## #????????# =%?????????? | | ??????????### ####??????# #?????????? | | ????????????# #???????# ??????????? | | ????????????# #???????? ??????????? | | ????????????### #????????? ???????????? | | ??????????????# #?????????? ???????????? | | ??????????????# #????????????????????????? | | ??????????????# #????????????????????????? | | ??????????????#[ #????????????????????????? | | ??????????????# ########?????????????????? | | ??????????????# ##????????????????? | | ??????????????# @a #######??????????? | | ??????????????###### % ??????? | | ?????????????????## ## ###??????????? | | ????????????????## #? #????????????? | | ????????????????# ## ###??????????? | | ?????????????##?# ##?????????? | | ????????????## ## #??#?#????? | | ????????????# ##????????? | | ????????????# ##???????? | | ????????????## ##??????? | | ?????????????## ##### #??????? | | ??????????????# /# ??????? | | ??????????????# !#X ##??????????? | | ??????????????# ] ##??#????????? | | ?????????????## = = ##????????????? | | ?????????????# #?????????????? | | ?????????????## ! # #??#??#???????? | | ??????????????####### #?????????????? | | ???????????????????# ###???????????? | | ???????????????????# ## ############# | | ???????????????????# ### | | ??????????????????### #?# | | ????????????????????## #?# # ############ | | ??????????????????#??# #?#######??????????? | | ?????????????????????###??????????????????? | +----------------------------------------------------+ Best States ------------- Heat Dissipation 25 Energy Generation 18 Energy Capacity 250 Matter Stores 300 Matter Capacity 300 Sight Range 16 Terrain Scan Range 16 Terrain Scan Density 10 Evasion (%) 40 Targeting Accuracy 5 Recoil Reduction 2 Item Schematics ----------------- None Robot Schematics ------------------ None Fabricated ------------ Nothing Alien Tech Used ----------------- None Achievements -------------- None Challenges ------------ None Game ------ Seed SpliceAdvancedReactor Manual? 0 Play Time 00:14:12 Cumulative 384.4 hours Start 2025.01.04 @ 17:10:45 End 2025.01.04 @ 17:24:03 Sessions 1 Manual Loads 0 Difficulty Rogue Special Mode None Game No. 162 Rogue 162 Adventurer 0 Explorer 0 Win Type - Total 13 Types 11/0/1/1/0/0/0/0/0 Lore% 67 Gallery% 78 Achievement% 67 Wizard Run 0 Options --------- Layout 0 ASCII 0 Keyboard 0 Movement Numpad Keybinds 0 Fullscreen 1 Font 24/Smallcaps Map View 76x50 Zoom Use 0% Tactical HUD 1 Map Filters NONE Filters NONE Steam 1 RUN: 58abd057-a761-4255-bdc1-eb96e2c6d7c4